bitfinex-derivatives/quotes_BTCF0:USTF0_20250211
["timestamp","ask_amount","ask_price","bid_price","bid_amount"]
[1739311382316,0.0602,96562.0,96535.0,0.3608]
[1739311382523,0.2071635,96547.0,96536.0,0.0569]
[1739311382710,0.2071635,96547.0,96546.0,0.18190146]
[1739311383113,0.2071635,96547.0,96546.0,0.00015538]
[1739311384015,0.2071635,96547.0,96546.0,0.02647538]
[1739311384617,0.2111635,96547.0,96546.0,0.02647538]
[1739311385314,0.2121635,96547.0,96546.0,0.02747538]
[1739311386018,0.2121635,96547.0,96546.0,0.03575538]
[1739311386221,0.22327159,96547.0,96546.0,0.03575538]
[1739311387620,0.22327159,96547.0,96546.0,0.07718538]
[1739311396720,0.29523159,96547.0,96546.0,0.14610538]
[1739311409434,0.29523159,96547.0,96546.0,0.15438538]
[1739311416126,0.22327159,96547.0,96546.0,0.15438538]
[1739311423229,0.29523159,96547.0,96546.0,0.15438538]
[1739311424142,0.65603159,96547.0,96546.0,0.15438538]
[1739311427542,0.44886809,96547.0,96528.0,0.41984]
[1739311427742,0.2072021,96529.0,96528.0,0.3608]
[1739311428142,0.2072021,96529.0,96523.0,0.057]
[1739311428143,0.3608,96529.0,96523.0,0.057]
[1739311428450,0.20723,96516.0,96515.0,0.18174608]
[1739311429542,0.2072336,96515.0,96512.0,0.24134608]
[1739311429938,0.01400632,96529.0,96514.0,0.3608]
[1739311430144,0.2071961,96532.0,96528.0,0.2072043]
[1739311430446,0.2071961,96532.0,96529.0,0.1107]
[1739311430646,0.2071979,96531.0,96529.0,0.1107]
[1739311430848,0.2071979,96531.0,96530.0,0.0591]
[1739311430849,0.2071978,96531.0,96530.0,0.0591]
[1739311431845,0.2151978,96531.0,96530.0,0.0591]
[1739311432242,0.2131978,96531.0,96530.0,0.0591]
[1739311432443,0.2161978,96531.0,96530.0,0.0591]
[1739311436254,0.2072086,96526.0,96525.0,0.3608]
[1739311437245,0.2072193,96521.0,96520.0,0.0551]
[1739311438456,0.2072193,96521.0,96520.0,0.0561]
[1739311438663,0.3608,96534.0,96533.0,0.2071935]
[1739311438848,0.2071952,96533.0,96527.0,0.2072043]
[1739311439561,0.2072011,96530.0,96529.0,0.2072014]
[1739311441258,0.2102011,96530.0,96529.0,0.2072014]
[1739311441652,0.2152011,96530.0,96529.0,0.2072014]
[1739311443355,0.2072064,96527.0,96526.0,0.43384]
[1739311443659,0.2072064,96527.0,96526.0,0.3608]
[1739311444361,0.2072257,96518.0,96517.0,0.00011]
[1739311445563,0.2072257,96518.0,96517.0,0.00311]
[1739311447265,0.22113754,96518.0,96517.0,0.00311]
[1739311447454,0.22113754,96518.0,96517.0,0.00411]
[1739311448450,0.22113754,96518.0,96517.0,0.00111]
[1739311448655,0.22113754,96518.0,96517.0,0.00311]
[1739311451968,0.2072708,96497.0,96492.0,0.54254608]
[1739311452160,0.2072708,96497.0,96492.0,0.36184]
[1739311452351,0.2072708,96497.0,96492.0,0.3608]
[1739311454358,0.2072708,96497.0,96496.0,0.3628]
[1739311454559,0.2072708,96497.0,96496.0,0.3678]
[1739311455565,0.2072708,96497.0,96496.0,0.3937]
[1739311456153,0.2072708,96497.0,96496.0,0.39992]
[1739311456561,0.2072708,96497.0,96496.0,0.03912]
[1739311456762,0.22112212,96497.0,96496.0,0.03912]
[1739311464266,0.22112212,96497.0,96496.0,0.04741]
[1739311469871,0.01385132,96497.0,96496.0,0.254683]
[1739311470078,0.00056001,96501.0,96496.0,0.254683]
[1739311470079,0.2072582,96503.0,96502.0,0.2072579]
[1739311470463,0.2072685,96499.0,96496.0,0.04741]
[1739311470674,0.2072612,96502.0,96501.0,0.207257]
[1739311472972,0.2072612,96502.0,96501.0,0.568057]
[1739311473279,0.2072612,96502.0,96501.0,0.569057]
[1739311478775,0.01350672,96506.0,96501.0,0.569057]
[1739311478776,0.22075822,96506.0,96505.0,0.2072537]
[1739311480180,0.22275822,96506.0,96505.0,0.2072537]
[1739311484284,0.00215538,96506.0,96505.0,0.2072537]
[1739311490482,0.00215538,96506.0,96505.0,0.5680537]
[1739311493583,0.00215538,96506.0,96505.0,0.5742137]
[1739311494494,0.00215538,96506.0,96505.0,0.6156537]
[1739311495086,0.00215538,96506.0,96505.0,0.4084]
[1739311495087,0.20940688,96506.0,96505.0,0.4084]
[1739311495682,0.20940688,96506.0,96505.0,0.0476]
[1739311497596,0.20940688,96506.0,96505.0,0.2623337]
[1739311498187,0.20940688,96506.0,96505.0,0.2882337]
[1739311500793,0.00215538,96506.0,96505.0,0.2882337]
[1739311501300,0.00215538,96506.0,96505.0,0.2965137]
[1739311503098,0.00215538,96506.0,96505.0,0.3683937]
[1739311506097,0.00215538,96506.0,96505.0,0.4226937]
[1739311506293,0.07188,96536.0,96505.0,0.21544]
[1739311506495,0.2598176,96522.0,96519.0,0.2072236]
[1739311507495,0.2072209,96521.0,96519.0,0.2072236]
[1739311507698,0.0752534,96520.0,96519.0,0.001]
[1739311508699,0.0762534,96520.0,96519.0,0.001]
[1739311509100,0.0762534,96520.0,96519.0,0.04244]
[1739311509400,0.0306534,96520.0,96519.0,0.04344]
[1739311510294,0.017,96520.0,96519.0,0.04344]
[1739311511102,0.017,96520.0,96519.0,0.2506636]
[1739311511504,0.2071684,96545.0,96541.0,0.2071764]
[1739311511804,0.20872848,96542.0,96541.0,0.2071764]
[1739311512813,0.01955428,96542.0,96541.0,0.2091764]
[1739311513603,0.03273099,96542.0,96541.0,0.2091764]
[1739311514200,0.02873099,96542.0,96541.0,0.2081764]
[1739311514605,0.01773099,96542.0,96541.0,0.2071764]
[1739311514802,0.01473099,96542.0,96541.0,0.2071764]
[1739311515003,0.01873099,96542.0,96541.0,0.2071764]
[1739311515400,0.01773099,96542.0,96541.0,0.2071764]
[1739311516704,0.01773099,96542.0,96541.0,0.2132964]
[1739311517502,0.01873099,96542.0,96541.0,0.2132964]
[1739311518111,0.01773099,96542.0,96541.0,0.2132964]
[1739311518309,0.22490519,96542.0,96541.0,0.00612]
[1739311522011,0.22490519,96542.0,96541.0,0.04755]
[1739311528513,0.22490519,96542.0,96541.0,0.05583]
[1739311530515,0.22490519,96542.0,96541.0,0.06328]
[1739311533817,0.01773099,96542.0,96541.0,0.06328]
[1739311534022,0.01773099,96542.0,96541.0,0.2704563]
[1739311534915,0.01773099,96542.0,96541.0,0.6312563]
[1739311537122,0.01617671,96542.0,96541.0,0.6312563]
[1739311538620,0.01517671,96542.0,96541.0,0.6312563]
[1739311539425,0.002,96542.0,96541.0,0.6312563]
[1739311539922,0.20731038,96551.0,96550.0,0.207157]
[1739311540117,0.20731038,96551.0,96550.0,0.567957]
[1739311541025,0.21984231,96551.0,96550.0,0.567957]
[1739311541427,0.21984231,96551.0,96550.0,0.609377]
[1739311542926,0.22384231,96551.0,96550.0,0.609377]
[1739311544021,0.22384231,96551.0,96550.0,0.40222]
[1739311544922,0.22384231,96551.0,96550.0,0.04142]
[1739311545230,0.2071742,96542.0,96541.0,0.02185]
[1739311545722,0.3608,96546.0,96532.0,0.00015538]
[1739311545929,0.2071978,96531.0,96530.0,0.00155379]
[1739311546125,0.3608,96537.0,96512.0,0.24323414]
[1739311546332,0.2072193,96521.0,96512.0,0.24323414]
[1739311547332,0.2072193,96521.0,96519.0,0.00828]
[1739311547725,0.2072193,96521.0,96520.0,0.18974608]
[1739311548234,0.21987538,96521.0,96520.0,0.18974608]
[1739311549323,0.21987538,96521.0,96520.0,0.011]
[1739311551628,0.01265608,96521.0,96516.0,0.04144]
[1739311551834,0.2072279,96517.0,96516.0,0.04144]
[1739311552230,0.0515,96522.0,96511.0,0.00015538]
[1739311552433,0.2072386,96512.0,96511.0,0.00015538]
[1739311552733,0.2072601,96502.0,96490.0,0.2072856]
[1739311552933,0.35252,96502.0,96489.0,0.36184]
[1739311553126,0.24753402,96511.0,96483.0,0.2072998]
[1739311553127,0.1952848,96491.0,96483.0,0.2072998]
[1739311553326,0.2072867,96490.0,96484.0,0.2072982]
[1739311553728,0.2072867,96490.0,96489.0,0.3608]
[1739311554027,0.1922867,96490.0,96489.0,0.3608]
[1739311554334,0.1922867,96490.0,96488.0,0.00541]
[1739311554729,0.1932867,96490.0,96488.0,0.00541]
[1739311555129,0.1932867,96490.0,96488.0,0.36621]
[1739311556926,0.2058091,96490.0,96488.0,0.36621]
[1739311559727,0.4326,96489.0,96486.0,0.04145]
[1739311559924,0.2072901,96488.0,96486.0,0.04145]
[1739311560337,0.2072966,96485.0,96484.0,0.02591]
[1739311560934,0.2073116,96478.0,96468.0,0.36235462]
[1739311561538,0.2073116,96478.0,96475.0,0.04146]
[1739311562643,0.2083116,96478.0,96477.0,0.00315546]
[1739311564143,0.2073783,96447.0,96446.0,0.0493]
[1739311565647,0.2073783,96447.0,96446.0,0.0523]
[1739311566148,0.2073783,96447.0,96446.0,0.0493]
[1739311566448,0.2073783,96447.0,96446.0,0.0513]
[1739311566833,0.0502,96455.0,96446.0,0.0513]
[1739311567039,0.2073654,96453.0,96452.0,0.3608]
[1739311568146,0.2113654,96453.0,96452.0,0.3608]
[1739311568337,0.2123654,96453.0,96452.0,0.3608]
[1739311568652,0.2073783,96447.0,96446.0,0.0493]
[1739311571643,0.3608,96447.0,96441.0,0.01974]
[1739311571844,0.207389,96442.0,96441.0,0.01974]
[1739311572246,0.2073976,96438.0,96437.0,0.00015546]
[1739311574552,0.2083976,96438.0,96437.0,0.00015546]
[1739311574752,0.22090557,96438.0,96437.0,0.00015546]
[1739311577953,0.22090557,96438.0,96434.0,0.38054]
[1739311577954,0.2074041,96435.0,96434.0,0.38054]
[1739311578251,0.3608,96435.0,96426.0,0.00155536]
[1739311578454,0.3608,96427.0,96413.0,0.104]
[1739311578853,0.3608,96427.0,96423.0,0.2074294]
[1739311579755,0.3618,96427.0,96423.0,0.2074294]
[1739311579956,0.2074297,96424.0,96419.0,0.2074383]
[1739311580152,0.2074352,96421.0,96413.0,0.104]
[1739311580550,0.001,96427.0,96413.0,0.104]
[1739311580750,0.22112274,96427.0,96413.0,0.104]
[1739311580950,0.002,96424.0,96413.0,0.104]
[1739311581154,0.002,96424.0,96415.0,0.2074452]
[1739311581859,0.001,96421.0,96415.0,0.2074452]
[1739311582059,0.001,96421.0,96419.0,0.3608]
[1739311582254,0.002,96424.0,96419.0,0.07184]
[1739311582454,0.003,96424.0,96413.0,0.104]
[1739311582658,0.12376701,96423.0,96414.0,0.07184]
[1739311582962,0.001,96421.0,96414.0,0.07184]
[1739311583153,0.001,96421.0,96413.0,0.104]
[1739311583352,0.2074492,96414.0,96413.0,0.0507]
[1739311583659,0.2074557,96411.0,96410.0,0.00015554]
[1739311584253,0.0518653,96409.0,96394.0,0.00155588]
[1739311584556,0.5682901,96395.0,96394.0,0.00155588]
[1739311586364,0.58105132,96395.0,96394.0,0.00155588]
[1739311586550,0.94185132,96395.0,96394.0,0.00155588]
[1739311586755,0.94285132,96395.0,96394.0,0.00155588]
[1739311587050,0.2074987,96391.0,96390.0,0.30339713]
[1739311587872,0.2074987,96391.0,96390.0,0.32932713]
[1739311588062,0.73588123,96395.0,96385.0,0.0001038]
[1739311588255,0.3608,96386.0,96380.0,0.36310809]
[1739311588460,0.2075203,96381.0,96380.0,0.36310809]
[1739311589368,0.2075396,96372.0,96371.0,0.0515]
[1739311589861,0.3608,96374.0,96363.0,0.00155651]
[1739311589862,0.2075552,96365.0,96363.0,0.00155651]
[1739311590857,0.051,96364.0,96345.0,0.0536]
[1739311591067,0.2075832,96352.0,96346.0,0.0529]
[1739311591265,0.2075685,96359.0,96346.0,0.0529]
[1739311591461,0.12376701,96360.0,96346.0,0.0529]
[1739311591665,0.00015563,96359.0,96346.0,0.0529]
[1739311591964,0.2075935,96347.0,96346.0,0.0529]
[1739311592865,0.2075836,96352.0,96346.0,0.0529]
[1739311593268,0.2075853,96351.0,96346.0,0.0529]
[1739311593758,0.2075935,96347.0,96346.0,0.0529]
[1739311595376,0.2085935,96347.0,96346.0,0.0529]
[1739311597662,0.001,96347.0,96346.0,0.0529]
[1739311598467,0.01227133,96359.0,96354.0,0.2075767]
[1739311598768,0.00015563,96359.0,96358.0,0.3608]
[1739311599765,0.00115563,96359.0,96358.0,0.3608]
[1739311600260,0.00115563,96359.0,96356.0,0.0498]
[1739311600477,0.00115563,96359.0,96358.0,0.3608]
[1739311601177,0.00115563,96359.0,96355.0,0.07188]
[1739311601373,0.207574,96356.0,96355.0,0.07188]
[1739311603069,0.208574,96356.0,96355.0,0.07188]
[1739311603477,0.001,96356.0,96346.0,0.4137]
[1739311603676,0.2075853,96351.0,96347.0,0.07188]
[1739311603875,0.20759,96349.0,96346.0,0.4137]
[1739311604073,0.001,96356.0,96346.0,0.4137]
[1739311604074,0.2075918,96348.0,96346.0,0.4137]
[1739311604474,0.2075934,96347.0,96346.0,0.4137]
[1739311605774,0.2085934,96347.0,96346.0,0.4137]
[1739311607774,0.22071438,96347.0,96346.0,0.4137]
[1739311610574,0.22071438,96347.0,96346.0,0.3608]
[1739311616783,0.22071438,96347.0,96343.0,0.3608]
[1739311616987,0.22071438,96347.0,96343.0,0.5684008]
[1739311617389,0.001,96347.0,96346.0,0.2075956]
[1739311617981,0.001,96347.0,96343.0,0.3608]
[1739311618177,0.002,96347.0,96346.0,0.2075956]
[1739311618781,0.001,96347.0,96343.0,0.3608]
[1739311618986,0.001,96347.0,96346.0,0.2075956]
[1739311619489,0.001,96347.0,96346.0,0.2335356]
[1739311620482,0.00015563,96359.0,96358.0,0.2075697]
[1739311620686,0.00015563,96359.0,96358.0,0.6402497]
[1739311621685,0.00115563,96359.0,96358.0,0.6402497]
[1739311626404,0.0548,96380.0,96379.0,0.2075245]
[1739311626795,0.2623223,96380.0,96379.0,0.2075245]
[1739311627600,0.27476909,96380.0,96379.0,0.2075245]
[1739311627909,0.28076909,96380.0,96379.0,0.2075245]
[1739311628101,0.29476909,96380.0,96379.0,0.2075245]
[1739311628802,0.28676909,96380.0,96379.0,0.2075245]
[1739311630501,0.28376909,96380.0,96379.0,0.2075245]
[1739311630801,0.28876909,96380.0,96379.0,0.2075245]
[1739311631504,0.27876909,96380.0,96379.0,0.2075245]
[1739311631698,0.28476909,96380.0,96379.0,0.2075245]
[1739311632399,0.28576909,96380.0,96379.0,0.2075245]
[1739311633905,0.28476909,96380.0,96379.0,0.2075245]
[1739311634103,0.27976909,96380.0,96379.0,0.2075245]
[1739311634402,0.27776909,96380.0,96379.0,0.2075245]
[1739311634706,0.28076909,96380.0,96379.0,0.2075245]
[1739311634908,0.28576909,96380.0,96379.0,0.2075245]
[1739311635509,0.28476909,96380.0,96379.0,0.2075245]
[1739311635809,0.28376909,96380.0,96379.0,0.2075245]
[1739311636599,0.07624679,96380.0,96370.0,0.00015563]
[1739311636800,0.3608,96372.0,96370.0,0.00015563]
[1739311637001,0.07624679,96380.0,96370.0,0.00015563]
[1739311637002,0.02244679,96380.0,96370.0,0.00015563]
[1739311637197,0.003,96380.0,96379.0,0.5683245]
[1739311637403,0.00015563,96389.0,96388.0,0.2075051]
[1739311638003,0.00015563,96389.0,96388.0,0.5683051]
[1739311638410,0.3608,96433.0,96388.0,0.3608]
[1739311638602,0.2074352,96421.0,96417.0,0.2074407]
[1739311638803,0.0524,96422.0,96417.0,0.2074407]
[1739311638804,0.2074369,96420.0,96417.0,0.2074407]
[1739311639406,0.2074405,96419.0,96417.0,0.2074407]
[1739311640616,0.0524,96422.0,96421.0,0.2074341]
[1739311640808,0.054,96427.0,96423.0,0.2074284]
[1739311641207,0.054,96427.0,96425.0,0.2074237]
[1739311641916,0.058,96427.0,96425.0,0.2074237]
[1739311642218,0.07,96427.0,96425.0,0.2074237]
[1739311642915,0.016,96427.0,96425.0,0.2074237]
[1739311643511,0.00015563,96428.0,96422.0,0.3608]
[1739311643717,0.3608,96465.0,96427.0,0.3608]
[1739311643914,0.2073529,96459.0,96451.0,0.2073696]
[1739311644216,0.1983632,96452.0,96451.0,0.2792096]
[1739311644609,0.18591703,96452.0,96451.0,0.2792096]
[1739311644918,0.18691703,96452.0,96451.0,0.2792096]
[1739311645319,0.40828443,96452.0,96451.0,0.07184]
[1739311646311,0.40728443,96452.0,96451.0,0.07184]
[1739311646609,0.41428443,96452.0,96451.0,0.07184]
[1739311647620,0.20691703,96452.0,96442.0,0.00015555]
[1739311647815,0.3818,96452.0,96443.0,0.0718]
[1739311648014,0.021,96452.0,96444.0,0.0718]
[1739311648212,0.021,96452.0,96450.0,0.2073716]
[1739311650215,0.2073727,96450.0,96447.0,0.3608]
[1739311650717,0.2073727,96450.0,96447.0,0.5681779]
[1739311651509,0.2283727,96450.0,96447.0,0.5681779]
[1739311652414,0.207376,96448.0,96447.0,0.5681779]
[1739311652621,0.2073863,96444.0,96442.0,0.00015555]
[1739311652821,0.2073863,96444.0,96443.0,0.0718]
[1739311653717,0.2073863,96444.0,96443.0,0.2791868]
[1739311653919,0.014,96448.0,96447.0,0.2073782]
[1739311654126,0.021,96448.0,96447.0,0.2073782]
[1739311654521,0.214376,96448.0,96447.0,0.2073782]
[1739311654722,0.207376,96448.0,96447.0,0.2073782]
[1739311655824,0.207376,96448.0,96442.0,0.00015555]
[1739311655825,0.37363045,96455.0,96442.0,0.00015555]
[1739311656123,0.2073868,96443.0,96442.0,0.20754435]
[1739311657223,0.2213868,96443.0,96442.0,0.00015555]
[1739311657724,0.2263868,96443.0,96442.0,0.00015555]
[1739311657923,0.2263868,96443.0,96442.0,0.20754445]
[1739311659921,0.2263868,96443.0,96442.0,0.00015555]
[1739311663224,0.23857658,96443.0,96442.0,0.00015555]
[1739311665021,0.2074104,96432.0,96431.0,0.00155534]
[1739311666231,0.2134104,96432.0,96431.0,0.00155534]
[1739311666622,0.2154104,96432.0,96431.0,0.00155534]
[1739311667026,0.2094104,96432.0,96431.0,0.00155534]
[1739311667228,0.2214104,96432.0,96431.0,0.00155534]
[1739311667428,0.2194104,96432.0,96431.0,0.00155534]
[1739311667632,0.2214104,96432.0,96431.0,0.00155534]
[1739311669631,0.2194104,96432.0,96431.0,0.00155534]
[1739311669930,0.2254104,96432.0,96431.0,0.00155534]
[1739311670127,0.23714592,96432.0,96431.0,0.00155534]
[1739311672633,0.2074298,96423.0,96422.0,0.00015555]
[1739311672831,0.5682298,96423.0,96422.0,0.00015555]
[1739311673835,0.5762298,96423.0,96422.0,0.00015555]
[1739311676030,0.5782298,96423.0,96422.0,0.00015555]
[1739311676837,0.5762298,96423.0,96422.0,0.00015555]
[1739311687347,0.051863,96413.0,96400.0,0.053]
[1739311687653,0.2074965,96392.0,96389.0,0.3608]
[1739311688150,0.2074878,96397.0,96389.0,0.3608]
[1739311688351,0.00015555,96401.0,96389.0,0.3608]
[1739311688646,0.2074793,96400.0,96389.0,0.3608]
[1739311688847,0.00015555,96401.0,96400.0,0.004]
[1739311689044,0.20763265,96401.0,96400.0,0.005]
[1739311689351,0.20763265,96401.0,96400.0,0.001]
[1739311689946,0.00015555,96401.0,96389.0,0.3608]
[1739311690250,0.2075008,96390.0,96389.0,0.3608]
[1739311693247,0.2075008,96390.0,96388.0,0.00155607]
[1739311693449,0.207503,96389.0,96388.0,0.00155607]
[1739311695054,0.2075159,96383.0,96382.0,0.36095555]
[1739311695943,0.2075159,96383.0,96371.0,0.1038]
[1739311695944,0.2075396,96372.0,96371.0,0.1038]
[1739311696547,0.2055396,96372.0,96371.0,0.0536]
[1739311697148,0.2065396,96372.0,96371.0,0.0556]
[1739311697561,0.2065396,96372.0,96371.0,0.002]
[1739311698049,0.2085396,96372.0,96371.0,0.002]
[1739311703851,0.22048488,96372.0,96371.0,0.002]
[1739311716664,0.22048488,96372.0,96371.0,0.02794]
[1739311718555,0.22043851,96372.0,96371.0,0.02794]
[1739311730467,0.37571574,96372.0,96371.0,0.02794]
[1739311734961,0.22043851,96372.0,96371.0,0.02794]
[1739311738372,0.21943851,96372.0,96371.0,0.02594]
[1739311738967,0.21743851,96372.0,96371.0,0.02594]
[1739311739268,0.21943851,96372.0,96371.0,0.02594]
[1739311739869,0.21843851,96372.0,96371.0,0.02594]
[1739311751871,0.21843851,96372.0,96351.0,0.07176]
[1739311751872,0.01294528,96372.0,96351.0,0.07176]
[1739311752078,0.2075826,96352.0,96351.0,0.07176]
[1739311753485,0.2075826,96352.0,96351.0,0.07576]
[1739311753776,0.00015563,96361.0,96351.0,0.07576]
[1739311753974,0.20771893,96361.0,96360.0,0.2075654]
[1739311754974,0.21912821,96361.0,96360.0,0.2075654]
[1739311755377,0.21912821,96361.0,96360.0,0.2095654]
[1739311756376,0.22012821,96361.0,96360.0,0.2135654]
[1739311761388,0.22012821,96361.0,96360.0,0.006]
[1739311773687,0.40597058,96361.0,96360.0,0.006]
[1739311776391,0.19840728,96361.0,96343.0,0.1149]
[1739311776584,0.3608,96354.0,96343.0,0.1149]
[1739311776791,0.2075999,96344.0,96343.0,0.1149]
[1739311777894,0.2075999,96344.0,96343.0,0.1189]
[1739311778094,0.2085999,96344.0,96343.0,0.1209]
[1739311778482,0.2085999,96344.0,96343.0,0.1169]
[1739311778686,0.2095999,96344.0,96343.0,0.1209]
[1739311780294,0.2095999,96344.0,96343.0,0.12568443]
[1739311787004,0.22117567,96344.0,96343.0,0.12568443]
[1739311788296,0.22117567,96344.0,96343.0,0.12168443]
[1739311789304,0.22017567,96344.0,96343.0,0.11968443]
[1739311805713,0.22017567,96344.0,96343.0,0.06218443]
[1739311810813,0.22017567,96344.0,96343.0,0.00478443]
[1739311825625,0.00052001,96370.0,96343.0,0.40101536]
[1739311825927,0.2075548,96365.0,96360.0,0.2075654]
[1739311826124,0.2075617,96362.0,96360.0,0.07168]
[1739311826426,0.2075617,96362.0,96354.0,0.1157]
[1739311826427,0.20279167,96356.0,96354.0,0.1157]
[1739311826626,0.20279167,96356.0,96355.0,0.01374751]
[1739311827423,0.20479167,96356.0,96355.0,0.01374751]
[1739311829527,0.20479167,96356.0,96354.0,0.1157]
[1739311830625,0.20279167,96356.0,96354.0,0.1157]
[1739311830826,0.20379167,96356.0,96354.0,0.1157]
[1739311834234,0.001,96356.0,96354.0,0.1157]
[1739311836820,0.2075737,96357.0,96354.0,0.1157]
[1739311837026,0.001,96356.0,96354.0,0.1157]
[1739311839536,0.2085737,96357.0,96354.0,0.1157]
[1739311839840,0.001,96357.0,96353.0,0.00104]
[1739311840037,0.2076128,96338.0,96334.0,0.3608]
[1739311841033,0.2076128,96338.0,96333.0,0.0015568]
[1739311842423,0.2096128,96338.0,96337.0,0.1855133]
[1739311844237,0.2096128,96338.0,96337.0,0.002]
[1739311847032,0.002,96338.0,96337.0,0.002]
[1739311847630,0.002,96338.0,96337.0,1.502]
[1739311847830,0.01336038,96338.0,96337.0,1.502]
[1739311848030,0.002,96338.0,96337.0,1.502]
[1739311848424,0.002,96338.0,96337.0,0.002]
[1739311849739,0.002,96338.0,96337.0,0.2812549]
[1739311850237,0.2075744,96356.0,96347.0,0.2075923]
[1739311850439,0.21856399,96356.0,96350.0,0.3608]
[1739311850839,0.21856399,96356.0,96351.0,0.2075842]
[1739311851444,0.21856399,96356.0,96352.0,0.0551]
[1739311851836,0.21956399,96356.0,96352.0,0.0551]
[1739311852641,0.21856399,96356.0,96352.0,0.0561]
[1739311853533,0.21856399,96356.0,96352.0,0.0571]
[1739311862153,0.01098959,96356.0,96352.0,0.0571]
[1739311862345,0.2075775,96355.0,96352.0,0.0571]
[1739311869351,0.2075775,96355.0,96352.0,0.2646826]
[1739311871155,0.2075775,96355.0,96353.0,0.2075798]
[1739311872149,0.00015563,96361.0,96360.0,0.2075654]
[1739311872352,0.00015563,96361.0,96360.0,0.2791654]
[1739311873861,0.00215563,96361.0,96360.0,0.2791654]
[1739311874160,0.00715563,96361.0,96360.0,0.2791654]
[1739311875059,0.3608,96379.0,96360.0,0.7324]
[1739311875262,0.3608,96379.0,96378.0,0.2075267]
[1739311875456,0.3608,96379.0,96378.0,0.2790867]
[1739311876259,0.2075008,96390.0,96389.0,0.2075025]
[1739311876763,0.5683008,96390.0,96389.0,0.2075025]
[1739311877954,0.5823008,96390.0,96389.0,0.2075025]
[1739311878459,0.5873008,96390.0,96389.0,0.2075025]
[1739311879555,0.3798,96390.0,96381.0,0.2075181]
[1739311879756,0.3798,96390.0,96378.0,0.4336]
[1739311879956,0.2617032,96389.0,96386.0,0.207508]
[1739311880572,0.2075073,96387.0,96386.0,0.207508]
[1739311880764,0.2075073,96387.0,96378.0,0.43356]
[1739311881067,0.2075148,96384.0,96380.0,0.2075203]
[1739311882662,0.2095148,96384.0,96380.0,0.2075203]
[1739311882864,0.2095148,96384.0,96381.0,0.07156]
[1739311883959,0.002,96384.0,96381.0,0.07156]
[1739311884156,0.2075168,96383.0,96382.0,0.07156]
[1739311885761,0.003,96383.0,96381.0,0.001]
[1739311886062,0.2604181,96382.0,96381.0,0.001]
[1739311887867,0.2604181,96382.0,96378.0,0.3608]
[1739311887868,0.2075245,96379.0,96378.0,0.3608]
[1739311889364,0.2085245,96379.0,96378.0,0.3608]
[1739311890267,0.2085245,96379.0,96378.0,0.3618]
[1739311890471,0.2135245,96379.0,96378.0,0.3618]
[1739311892674,0.2135245,96379.0,96378.0,0.001]
[1739311917388,0.006,96379.0,96378.0,0.001]
[1739311917590,0.006,96379.0,96378.0,0.2085267]
[1739311917991,0.006,96379.0,96378.0,1.72136847]
[1739311918283,0.006,96379.0,96378.0,1.72149847]
[1739311918486,0.006,96379.0,96378.0,0.22149847]
[1739311920090,0.006,96379.0,96378.0,0.22148713]
[1739311920480,0.006,96379.0,96378.0,0.22147988]
[1739311921885,0.006,96379.0,96378.0,0.001]
[1739311922491,0.2135245,96379.0,96378.0,0.001]
[1739311926693,0.006,96379.0,96378.0,0.001]
[1739311937801,0.006,96379.0,96369.0,0.35996564]
[1739311938003,0.2075399,96372.0,96369.0,0.35996564]
[1739311938903,0.2075399,96372.0,96369.0,0.36196564]
[1739311939299,0.2075439,96370.0,96369.0,0.36196564]
[1739311940405,0.2075439,96370.0,96369.0,0.36396564]
[1739311940618,0.2075439,96370.0,96369.0,0.004]
[1739311942910,0.218352,96370.0,96369.0,0.004]
[1739311946617,0.579152,96370.0,96369.0,0.004]
[1739311947119,0.580152,96370.0,96369.0,0.006]
[1739311948114,0.579152,96370.0,96369.0,0.004]
[1739311949323,0.2075827,96352.0,96350.0,0.13]
[1739311949627,0.2075848,96351.0,96350.0,0.13]
[1739311950325,0.1975848,96351.0,96350.0,0.13]
[1739311950526,0.1905848,96351.0,96350.0,0.13]
[1739311951322,0.1925848,96351.0,96350.0,0.147]
[1739311956536,0.2075679,96359.0,96350.0,0.354587]
[1739311956729,0.3608,96362.0,96351.0,0.051]
[1739311956930,0.2075659,96360.0,96351.0,0.2585841]
[1739311957633,0.37230545,96362.0,96351.0,0.2585841]
[1739311957832,0.20757,96358.0,96351.0,0.2585841]
[1739311958833,0.2075744,96356.0,96351.0,0.2585841]
[1739311960526,0.2085744,96356.0,96351.0,0.2585841]
[1739311964336,0.2075827,96352.0,96351.0,0.051]
[1739311965530,0.2075827,96352.0,96351.0,0.052]
[1739311966542,0.2085827,96352.0,96351.0,0.052]
[1739311972343,0.21948273,96352.0,96351.0,0.052]
[1739311975437,0.001,96352.0,96351.0,0.052]
[1739311976941,0.001,96352.0,96351.0,0.1234]
[1739311978645,0.001,96352.0,96351.0,0.0724]
[1739311981052,0.2085827,96352.0,96351.0,0.0724]
[1739311991153,0.2085827,96352.0,96351.0,0.2569754]
[1739312001065,0.2085827,96352.0,96351.0,0.0724]
[1739312001569,0.2085827,96352.0,96351.0,0.07232]
[1739312004467,0.2085827,96352.0,96351.0,0.001]
[1739312010165,0.2075848,96351.0,96350.0,0.13]
[1739312010365,0.5683848,96351.0,96350.0,0.13]
[1739312011764,0.5693848,96351.0,96350.0,0.13]
[1739312016169,0.5693848,96351.0,96350.0,0.337587]
[1739312020975,0.2085848,96351.0,96350.0,0.337587]
[1739312057115,0.2075848,96351.0,96350.0,0.337587]
[1739312057309,0.2085848,96351.0,96350.0,0.337587]
[1739312072621,0.3618,96351.0,96344.0,0.1857754]
[1739312072817,0.207615,96337.0,96336.0,0.21512866]
[1739312073524,0.260715,96337.0,96336.0,0.21512866]
[1739312073819,0.258715,96337.0,96336.0,0.21512866]
[1739312074418,0.258715,96337.0,96336.0,0.21612866]
[1739312075422,0.06407609,96337.0,96315.0,0.36466537]
[1739312075622,0.2076603,96316.0,96315.0,0.20921958]
[1739312077423,0.2086603,96316.0,96315.0,0.20921958]
[1739312077720,0.2086603,96316.0,96315.0,0.00155728]
[1739312078325,0.21964717,96316.0,96315.0,0.00155728]
[1739312078919,0.22164717,96316.0,96315.0,0.00155728]
[1739312079425,0.2076832,96306.0,96304.0,0.66860644]
[1739312079626,0.2076832,96306.0,96304.0,0.3608]
[1739312080326,0.207684,96305.0,96304.0,0.3608]
[1739312080714,0.0519,96315.0,96300.0,0.1]